bitfinex-derivatives/quotes_BTCF0:USTF0_20240815
["timestamp","ask_amount","ask_price","bid_price","bid_amount"]
[1723689346524,0.15,58337.0,58336.0,0.727226]
[1723689346927,0.14000023,58337.0,58336.0,1.127226]
[1723689347137,0.14100023,58337.0,58336.0,0.99405149]
[1723689347337,0.001,58337.0,58336.0,0.99405149]
[1723689347533,0.001,58337.0,58336.0,1.39405149]
[1723689347925,0.001,58337.0,58336.0,0.223986]
[1723689348131,0.001,58337.0,58336.0,1.45503841]
[1723689348325,0.001,58337.0,58336.0,1.05503841]
[1723689348536,0.001,58337.0,58336.0,1.45503841]
[1723689348838,0.001,58337.0,58336.0,1.96709819]
[1723689350036,0.001,58337.0,58336.0,1.88188376]
[1723689351737,0.001,58337.0,58336.0,1.48188376]
[1723689351939,0.001,58337.0,58336.0,1.88188376]
[1723689352642,0.001,58337.0,58336.0,2.24268376]
[1723689353051,0.001,58337.0,58336.0,2.18269776]
[1723689353243,0.220985,58337.0,58336.0,0.584786]
[1723689353543,0.220985,58337.0,58336.0,0.164]
[1723689353840,1.5067518,58337.0,58336.0,0.164]
[1723689354029,0.5925118,58337.0,58336.0,0.164]
[1723689354441,0.161,58337.0,58336.0,0.223987]
[1723689356133,0.17181202,58337.0,58336.0,0.223987]
[1723689356638,0.17181202,58337.0,58336.0,0.29231646]
[1723689356639,0.161,58337.0,58336.0,0.29231646]
[1723689356845,0.161,58337.0,58336.0,0.223987]
[1723689357438,0.161,58337.0,58336.0,1.52644504]
[1723689358039,0.161,58337.0,58336.0,0.61220504]
[1723689359141,0.161,58337.0,58336.0,0.61220196]
[1723689361136,0.161,58337.0,58336.0,1.12644196]
[1723689361738,0.161,58337.0,58336.0,1.22914136]
[1723689362340,0.161,58337.0,58336.0,1.12643873]
[1723689362638,0.161,58337.0,58336.0,1.22913813]
[1723689363043,0.161,58337.0,58336.0,1.12643873]
[1723689363248,0.161,58337.0,58336.0,1.58642573]
[1723689363436,0.161,58337.0,58336.0,1.72915362]
[1723689363948,6e-08,58341.0,58340.0,0.119964]
[1723689364144,6e-08,58341.0,58340.0,1.79763277]
[1723689364340,6e-08,58341.0,58340.0,2.57008131]
[1723689365541,6e-08,58341.0,58340.0,2.57808131]
[1723689366450,6e-08,58341.0,58340.0,1.34526423]
[1723689366650,6e-08,58341.0,58340.0,0.96553634]
[1723689366843,6e-08,58341.0,58340.0,1.06806712]
[1723689367040,6e-08,58341.0,58340.0,1.06806629]
[1723689367241,6e-08,58341.0,58340.0,0.96553634]
[1723689367943,6e-08,58341.0,58340.0,1.60958761]
[1723689368244,6e-08,58341.0,58340.0,1.60958711]
[1723689368451,6e-08,58341.0,58340.0,1.66956911]
[1723689368649,6e-08,58341.0,58340.0,1.60958711]
[1723689369039,6e-08,58341.0,58340.0,2.44332964]
[1723689369237,0.3216,58357.0,58356.0,0.059966]
[1723689369443,0.14,58357.0,58356.0,0.58914783]
[1723689369851,0.14,58357.0,58356.0,0.64911383]
[1723689370050,0.14,58357.0,58356.0,0.64909983]
[1723689370440,0.00088,58360.0,58359.0,0.059963]
[1723689370644,0.00025706,58362.0,58361.0,0.059961]
[1723689370952,0.01025706,58362.0,58361.0,0.580761]
[1723689371136,0.01025706,58362.0,58361.0,0.64906035]
[1723689371537,0.01025706,58362.0,58361.0,0.580761]
[1723689373053,0.51404,58361.0,58359.0,0.05118416]
[1723689373255,0.059965,58357.0,58356.0,0.001]
[1723689373451,0.209965,58357.0,58356.0,0.14]
[1723689373644,1.124045,58357.0,58356.0,0.14]
[1723689373844,0.724045,58357.0,58356.0,0.14]
[1723689374354,0.209965,58357.0,58356.0,0.14]
[1723689374745,0.15,58357.0,58356.0,0.199966]
[1723689375245,1.084845,58357.0,58356.0,0.06185674]
[1723689375452,1.084845,58357.0,58356.0,0.02156448]
[1723689375453,1.484845,58357.0,58356.0,0.02156448]
[1723689375653,0.724045,58357.0,58356.0,0.02156448]
[1723689375844,0.209965,58357.0,58356.0,0.02156448]
[1723689376043,0.209965,58357.0,58356.0,0.02856448]
[1723689377345,0.15,58357.0,58356.0,0.02856448]
[1723689377557,0.15,58357.0,58356.0,0.08853048]
[1723689379447,0.15,58357.0,58356.0,0.15682983]
[1723689380456,0.15,58357.0,58356.0,0.08853048]
[1723689381554,0.15,58357.0,58356.0,0.07974602]
[1723689381555,0.209965,58357.0,58356.0,0.07974602]
[1723689381762,0.059967,58355.0,58354.0,0.21]
[1723689381959,0.05017571,58383.0,58356.0,0.17969329]
[1723689382162,0.6827,58382.0,58376.0,0.059945]
[1723689382358,0.6827,58382.0,58378.0,0.059943]
[1723689382359,0.8427,58382.0,58378.0,0.059943]
[1723689382559,0.8427,58382.0,58378.0,0.209943]
[1723689382754,0.8427,58382.0,58379.0,0.059942]
[1723689382954,0.8427,58382.0,58379.0,0.229942]
[1723689383351,0.8427,58382.0,58380.0,0.420741]
[1723689383352,0.4819,58382.0,58380.0,0.420741]
[1723689383666,0.16,58382.0,58381.0,0.05116646]
[1723689383959,0.16,58382.0,58381.0,0.17]
[1723689384559,0.16,58382.0,58381.0,0.22108121]
[1723689385064,0.00025706,58386.0,58381.0,0.17]
[1723689385359,0.00025706,58386.0,58385.0,0.3608]
[1723689385360,0.16025706,58386.0,58385.0,0.3608]
[1723689385568,0.00088,58391.0,58385.0,0.5008]
[1723689385756,0.059919,58402.0,58390.0,0.3608]
[1723689385956,0.16,58402.0,58400.0,0.059921]
[1723689386264,0.16,58402.0,58396.0,0.3608]
[1723689386462,0.16,58402.0,58396.0,0.5108]
[1723689387255,0.162,58402.0,58396.0,0.5108]
[1723689387655,0.166,58402.0,58400.0,0.001]
[1723689388059,0.165,58402.0,58400.0,0.001]
[1723689388257,0.165,58402.0,58401.0,0.05992]
[1723689388852,0.165,58402.0,58401.0,0.20992]
[1723689389060,0.005,58402.0,58401.0,0.20992]
[1723689389367,0.001,58402.0,58401.0,0.20992]
[1723689389554,0.002,58402.0,58401.0,0.20992]
[1723689389757,0.001,58402.0,58401.0,0.20992]
[1723689389962,0.003,58402.0,58401.0,0.20992]
[1723689390154,0.003,58402.0,58401.0,0.21092]
[1723689390659,0.001,58402.0,58401.0,0.21092]
[1723689390866,0.003,58402.0,58401.0,0.21092]
[1723689391258,0.369705,58416.0,58401.0,0.7685819]
[1723689391454,0.469705,58416.0,58411.0,0.3608]
[1723689391857,0.469705,58416.0,58406.0,0.3608]
[1723689391858,0.3608,58415.0,58406.0,0.3608]
[1723689392056,0.5308,58415.0,58406.0,0.5008]
[1723689392959,0.420714,58407.0,58406.0,0.14]
[1723689393159,0.5208,58407.0,58390.0,0.059931]
[1723689393364,0.05993,58391.0,58384.0,0.3608]
[1723689393662,0.059931,58390.0,58385.0,0.059936]
[1723689393859,0.059932,58389.0,58385.0,0.229936]
[1723689394063,0.219932,58389.0,58385.0,0.229936]
[1723689395271,0.16,58389.0,58386.0,0.059935]
[1723689395461,0.16,58389.0,58386.0,0.209935]
[1723689395662,0.16,58389.0,58387.0,0.059934]
[1723689395861,0.16,58389.0,58387.0,0.219934]
[1723689396863,0.16,58389.0,58387.0,0.227934]
[1723689397566,0.16,58389.0,58388.0,0.059933]
[1723689397862,0.16,58389.0,58388.0,0.219933]
[1723689399071,0.16,58389.0,58388.0,0.225933]
[1723689399468,0.16,58389.0,58388.0,0.232933]
[1723689400265,0.16,58389.0,58388.0,0.240933]
[1723689402059,0.16,58389.0,58388.0,0.230933]
[1723689402261,0.16,58389.0,58388.0,0.239933]
[1723689402471,0.16,58389.0,58388.0,0.49418489]
[1723689403383,0.01,58395.0,58388.0,1.26427383]
[1723689403565,0.01342111,58405.0,58404.0,0.059917]
[1723689403872,0.14,58405.0,58404.0,0.580717]
[1723689404772,0.33500956,58412.0,58411.0,0.05991]
[1723689404963,0.49500956,58412.0,58411.0,0.20991]
[1723689406061,0.49500956,58412.0,58411.0,0.21091]
[1723689407776,0.49500956,58412.0,58411.0,0.21191]
[1723689409569,0.17340956,58412.0,58411.0,0.21191]
[1723689411373,0.16,58412.0,58411.0,0.21191]
[1723689416279,0.16,58412.0,58411.0,0.21091]
[1723689416470,0.16,58412.0,58411.0,0.20991]
[1723689418375,0.16,58412.0,58411.0,0.51101]
[1723689420172,0.16,58412.0,58411.0,0.20991]
[1723689420366,0.16,58412.0,58411.0,0.15]
[1723689420568,0.219908,58412.0,58411.0,0.15]
[1723689421173,0.16,58412.0,58411.0,0.209909]
[1723689424582,0.00088,58419.0,58411.0,1.55614993]
[1723689424777,0.00088,58426.0,58418.0,0.657402]
[1723689424978,0.00088,58426.0,58425.0,0.64860159]
[1723689425276,0.9703,58437.0,58433.0,0.059887]
[1723689425477,0.059886,58434.0,58433.0,0.16]
[1723689425681,0.209886,58434.0,58433.0,0.16]
[1723689425986,0.15,58434.0,58433.0,0.219887]
[1723689426877,0.15,58434.0,58433.0,0.456587]
[1723689427189,0.15,58434.0,58433.0,0.50766508]
[1723689427481,0.15,58434.0,58433.0,0.817387]
[1723689428188,0.15,58434.0,58433.0,1.19492245]
[1723689428488,0.15,58434.0,58433.0,1.126787]
[1723689429277,0.15,58434.0,58433.0,1.130787]
[1723689429989,0.15,58434.0,58433.0,1.137787]
[1723689431381,0.15,58434.0,58433.0,1.18880546]
[1723689431584,0.15,58434.0,58433.0,1.137787]
[1723689432883,0.15,58434.0,58433.0,0.901087]
[1723689434282,0.15,58434.0,58433.0,0.95210756]
[1723689434990,0.15,58434.0,58433.0,0.901087]
[1723689435493,0.15,58434.0,58433.0,0.95209814]
[1723689435906,0.15,58434.0,58433.0,0.901087]
[1723689436206,0.15,58434.0,58433.0,0.95209814]
[1723689436414,0.15,58434.0,58433.0,0.901087]
[1723689437102,0.15,58434.0,58433.0,0.591687]
[1723689438705,0.15,58434.0,58433.0,0.230887]
[1723689439811,0.15,58434.0,58433.0,0.467587]
[1723689446316,0.15,58434.0,58433.0,0.51859814]
[1723689446617,0.15,58434.0,58433.0,0.467587]
[1723689447814,0.15,58434.0,58433.0,0.53572245]
[1723689448021,0.15,58434.0,58433.0,0.467587]
[1723689448521,0.059875,58446.0,58433.0,0.4077]
[1723689448723,0.209875,58446.0,58440.0,0.3608]
[1723689448924,0.209875,58446.0,58440.0,0.5308]
[1723689449317,0.22325619,58446.0,58440.0,0.5308]
[1723689449626,0.22325619,58446.0,58440.0,0.58186377]
[1723689450207,0.22325619,58446.0,58444.0,0.059875]
[1723689450409,0.22325619,58446.0,58444.0,0.209875]
[1723689453111,0.22325619,58446.0,58444.0,0.26093877]
[1723689453321,0.22325619,58446.0,58444.0,0.209875]
[1723689453520,0.22325619,58446.0,58444.0,0.210875]
[1723689453728,0.22325619,58446.0,58445.0,0.05118121]
[1723689453917,0.22325619,58446.0,58445.0,0.20118121]
[1723689454334,0.22325619,58446.0,58445.0,0.21808503]
[1723689455224,0.22325619,58446.0,58445.0,0.15]
[1723689455617,0.22325619,58446.0,58445.0,0.21834211]
[1723689456020,0.22325619,58446.0,58445.0,0.21934211]
[1723689456325,0.22325619,58446.0,58445.0,0.22034211]
[1723689457022,0.22325619,58446.0,58445.0,0.22035764]
[1723689457523,0.22325619,58446.0,58445.0,0.152]
[1723689459221,0.22325619,58446.0,58445.0,0.211875]
[1723689459424,0.16338119,58446.0,58445.0,0.572675]
[1723689459620,0.16338119,58446.0,58445.0,0.69625302]
[1723689459934,0.16338119,58446.0,58445.0,0.7816837]
[1723689460225,0.15,58446.0,58445.0,0.69625302]
[1723689460817,0.15,58446.0,58445.0,0.78166365]
[1723689461119,0.15,58446.0,58445.0,0.70928682]
[1723689462827,0.15,58446.0,58445.0,0.79466509]
[1723689463623,0.15,58446.0,58445.0,0.78163129]
[1723689463932,0.15,58446.0,58445.0,0.65805327]
[1723689464134,0.15,58446.0,58445.0,0.572675]
[1723689469634,0.15,58446.0,58445.0,0.65805327]
[1723689469834,0.15,58446.0,58445.0,0.78153387]
[1723689470034,0.15,58446.0,58445.0,0.65805327]
[1723689470529,0.15,58446.0,58445.0,0.572675]
[1723689470726,0.15,58446.0,58445.0,0.99279053]
[1723689471125,0.15,58446.0,58445.0,1.09512345]
[1723689471728,0.15,58446.0,58445.0,0.99226958]
[1723689472228,0.15,58446.0,58445.0,1.0946025]
[1723689472424,0.15,58446.0,58445.0,1.1006025]
[1723689472620,0.15,58446.0,58445.0,1.1096025]
[1723689472825,0.15,58446.0,58445.0,1.0497275]
[1723689473328,0.15,58446.0,58445.0,0.94739458]
[1723689473522,0.15,58446.0,58445.0,1.0497275]
[1723689473933,0.15,58446.0,58445.0,1.30483318]
[1723689474633,0.15,58446.0,58445.0,1.20250026]
[1723689475334,0.15,58446.0,58445.0,1.6570163]
[1723689475335,0.09867041,58446.0,58445.0,1.6570163]
[1723689476036,0.09867041,58446.0,58445.0,1.6400163]
[1723689476334,0.05040874,58473.0,58469.0,0.05985]
[1723689476536,0.15,58473.0,58471.0,0.059848]
[1723689476735,0.15,58473.0,58472.0,0.05119617]
[1723689476929,0.15,58473.0,58472.0,0.21119617]
[1723689477125,0.15,58473.0,58472.0,0.16]
[1723689477524,0.209846,58473.0,58472.0,0.21114695]
[1723689477838,0.22280257,58473.0,58472.0,0.21114695]
[1723689478139,0.22280257,58473.0,58470.0,0.05115215]
[1723689478140,0.059848,58471.0,58470.0,0.05115215]
[1723689478435,0.059854,58465.0,58458.0,0.05115215]
[1723689478635,0.059866,58454.0,58453.0,0.05115215]
[1723689478830,0.199866,58454.0,58453.0,0.16]
[1723689479031,0.713106,58454.0,58453.0,0.16]
[1723689479438,0.772972,58454.0,58453.0,0.16]
[1723689479627,0.059867,58453.0,58452.0,0.05115752]
[1723689479943,0.059867,58453.0,58450.0,0.05115752]
[1723689479944,0.059869,58451.0,58450.0,0.05115752]
[1723689480140,0.199869,58451.0,58450.0,0.05115752]
[1723689480439,0.199869,58451.0,58450.0,0.17]
[1723689481147,0.199869,58451.0,58450.0,0.22115761]
[1723689481334,0.199869,58451.0,58450.0,0.17]
[1723689481841,0.67909688,58459.0,58450.0,1.95207099]
[1723689481842,0.00113588,58459.0,58450.0,1.95207099]
[1723689482039,0.00025588,58459.0,58458.0,0.3608]
[1723689482243,0.06011688,58459.0,58458.0,0.50947813]
[1723689482544,0.23011688,58459.0,58458.0,0.753]
[1723689483135,0.23011688,58459.0,58458.0,0.5008]
[1723689483839,0.23011688,58459.0,58458.0,0.5028]
[1723689484352,0.17025588,58459.0,58458.0,0.562662]
[1723689484640,0.17025588,58459.0,58458.0,0.6308513]
[1723689484840,0.17025588,58459.0,58458.0,0.562662]
[1723689485042,0.17025588,58459.0,58458.0,0.6308513]
[1723689485432,0.17025588,58459.0,58458.0,0.6308492]
[1723689485829,0.17025588,58459.0,58458.0,0.58376083]
[1723689486029,0.17025588,58459.0,58458.0,0.6388492]
[1723689486229,0.17025588,58459.0,58458.0,0.562662]
[1723689486439,0.17025588,58459.0,58458.0,0.5088]
[1723689486644,0.23011688,58459.0,58458.0,0.5839872]
[1723689487044,0.23011688,58459.0,58458.0,0.5158]
[1723689487236,0.23011688,58459.0,58458.0,0.5839872]
[1723689487435,0.23011688,58459.0,58458.0,0.5829872]
[1723689487837,0.23011688,58459.0,58458.0,0.5148]
[1723689488545,0.23011688,58459.0,58458.0,0.5108]
[1723689488942,1.20317788,58459.0,58458.0,0.014]
[1723689489151,0.059865,58455.0,58451.0,0.05115658]
[1723689489448,0.059865,58455.0,58451.0,0.17]
[1723689489449,0.059868,58452.0,58451.0,0.17]
[1723689489740,0.209868,58452.0,58451.0,0.17]
[1723689490335,0.209868,58452.0,58451.0,0.184]
[1723689490537,0.209868,58452.0,58451.0,0.198]
[1723689491332,0.209868,58452.0,58451.0,0.184]
[1723689492045,0.059871,58449.0,58448.0,0.00025662]
[1723689492339,0.269742,58449.0,58448.0,0.00025662]
[1723689492540,1.183022,58449.0,58448.0,0.00025662]
[1723689492946,1.183022,58449.0,58448.0,0.17025662]
[1723689493143,1.186022,58449.0,58448.0,0.17025662]
[1723689493353,0.212871,58449.0,58448.0,0.17025662]
[1723689493838,0.726151,58449.0,58448.0,0.17025662]
[1723689494141,0.212871,58449.0,58448.0,0.17025662]
[1723689494537,0.214871,58449.0,58448.0,0.17025662]
[1723689496353,0.728151,58449.0,58448.0,0.17025662]
[1723689496952,0.214871,58449.0,58448.0,0.17025662]
[1723689501458,0.274742,58449.0,58448.0,0.17025662]
[1723689501644,0.728151,58449.0,58448.0,0.17025662]
[1723689501846,0.788022,58449.0,58448.0,0.17025662]
[1723689502046,0.059878,58442.0,58441.0,0.3608]
[1723689502251,0.219878,58442.0,58441.0,0.5008]
[1723689502753,0.279756,58442.0,58441.0,0.19115658]
[1723689502961,0.793076,58442.0,58441.0,0.14]
[1723689503151,0.793076,58442.0,58441.0,0.012]
[1723689503152,1.194076,58442.0,58441.0,0.012]
[1723689503458,0.51336,58441.0,58421.0,0.05976159]
[1723689503647,0.059899,58422.0,58421.0,0.15860501]
[1723689503844,0.01,58428.0,58421.0,0.209899]
[1723689504053,0.059896,58425.0,58421.0,0.209899]
[1723689504252,0.209896,58425.0,58421.0,0.570699]
[1723689504452,0.059897,58424.0,58421.0,0.62185558]
[1723689504653,0.209897,58424.0,58421.0,0.570699]
[1723689505354,0.001,58422.0,58421.0,0.5148]
[1723689505658,0.220899,58422.0,58421.0,0.5278]
[1723689505850,0.219899,58422.0,58421.0,0.5238]
[1723689506047,0.219899,58422.0,58421.0,0.5278]
[1723689506249,0.219899,58422.0,58421.0,0.5148]
[1723689506557,0.220899,58422.0,58421.0,0.5278]
[1723689507260,0.221899,58422.0,58421.0,0.5218]
[1723689507451,0.221899,58422.0,58421.0,0.3718]
[1723689507650,0.735419,58422.0,58421.0,0.3718]
[1723689508455,0.221899,58422.0,58421.0,0.3718]
[1723689508659,0.221899,58422.0,58421.0,0.5318]
[1723689509256,1.792818,58422.0,58421.0,0.011]
[1723689510563,0.059903,58418.0,58417.0,0.00025662]
[1723689510763,0.219903,58418.0,58417.0,0.00025662]
[1723689510959,0.733463,58418.0,58417.0,0.00025662]
[1723689511558,0.219903,58418.0,58417.0,0.00025662]
[1723689512251,0.220903,58418.0,58417.0,0.00425662]
[1723689512661,0.23341796,58418.0,58417.0,0.00425662]
[1723689513055,0.23441796,58418.0,58417.0,0.18425662]
[1723689515456,0.17451496,58418.0,58417.0,0.24416062]
[1723689516358,0.17451496,58418.0,58417.0,0.18425662]
[1723689516566,0.17451496,58418.0,58417.0,0.01425662]
[1723689516567,0.23441796,58418.0,58417.0,0.01425662]
[1723689517460,0.23441796,58418.0,58417.0,0.17425662]
[1723689519057,0.29432096,58418.0,58417.0,0.09782662]
[1723689519463,0.65512096,58418.0,58417.0,0.07238425]
[1723689519763,0.65512096,58418.0,58417.0,0.03445425]
[1723689521169,0.59521796,58418.0,58417.0,0.03445425]
[1723689523765,0.59521796,58418.0,58415.0,0.24021334]
[1723689523766,0.059905,58416.0,58415.0,0.24021334]
[1723689524067,0.51651,58416.0,58415.0,0.16021334]
[1723689524373,0.059908,58413.0,58412.0,0.00025662]
[1723689524569,0.059916,58405.0,58404.0,0.2662]
[1723689524763,0.560716,58405.0,58404.0,0.4262]
[1723689525164,0.5008,58405.0,58404.0,0.4262]
[1723689525465,0.14,58405.0,58404.0,0.486117]
[1723689525970,0.141,58405.0,58404.0,0.486117]
[1723689526878,0.141,58405.0,58404.0,0.489117]
[1723689526879,0.142,58405.0,58404.0,0.489117]
[1723689527965,0.142,58405.0,58404.0,0.90095622]
[1723689528277,0.142,58405.0,58404.0,0.849917]
[1723689528570,0.142,58405.0,58404.0,0.90097348]
[1723689529074,0.142,58405.0,58404.0,0.489117]
[1723689530274,0.142,58405.0,58404.0,0.54017348]
[1723689530475,0.142,58405.0,58404.0,0.489117]
[1723689531486,0.142,58405.0,58404.0,0.9181042]
[1723689531979,0.142,58405.0,58404.0,1.763557]
[1723689533174,0.142,58405.0,58404.0,1.89395536]
[1723689533672,0.142,58405.0,58404.0,1.95387236]
[1723689534280,0.142,58405.0,58404.0,1.89395536]
[1723689536674,0.142,58405.0,58404.0,1.13315536]
[1723689537772,0.142,58405.0,58404.0,1.23545225]
[1723689538569,0.142,58405.0,58404.0,1.63545225]
[1723689538779,0.142,58405.0,58404.0,1.23545225]
[1723689538980,0.142,58405.0,58404.0,1.63571062]
[1723689539179,0.142,58405.0,58404.0,1.13315536]
[1723689539975,0.142,58405.0,58404.0,1.23572877]
[1723689543286,0.142,58405.0,58404.0,1.13315536]
[1723689545379,0.142,58405.0,58404.0,1.23573373]
[1723689545575,0.00025662,58410.0,58404.0,1.19307236]
[1723689545874,1.15802651,58427.0,58404.0,1.19307236]
[1723689545875,0.80523671,58427.0,58421.0,0.059899]
[1723689546080,0.059897,58424.0,58423.0,0.06837637]
[1723689546285,0.059897,58424.0,58423.0,0.22837637]
[1723689546286,0.209897,58424.0,58423.0,0.22837637]
[1723689546677,0.20998986,58424.0,58423.0,0.22837637]
[1723689547492,0.20998986,58424.0,58423.0,0.219897]
[1723689547786,0.15309286,58424.0,58423.0,0.28827337]
[1723689547990,0.15309286,58424.0,58423.0,0.28823414]
[1723689548284,0.15309286,58424.0,58423.0,0.28823451]
[1723689548487,0.15309286,58424.0,58423.0,0.28821327]
[1723689548687,0.15809286,58424.0,58423.0,0.28821327]
[1723689549090,0.15809286,58424.0,58423.0,0.219897]
[1723689549284,0.15509286,58424.0,58423.0,0.219897]
[1723689549592,0.15209286,58424.0,58423.0,0.28919177]
[1723689549890,0.15409286,58424.0,58423.0,0.220897]
[1723689550276,0.15409286,58424.0,58423.0,0.219897]
[1723689550481,0.15409286,58424.0,58423.0,0.222897]
[1723689551084,0.15409286,58424.0,58423.0,0.163]
[1723689551588,0.20998886,58424.0,58423.0,0.154]
[1723689553586,0.20998886,58424.0,58423.0,0.2051985]
[1723689553890,0.15009286,58424.0,58423.0,0.2650965]
[1723689554390,0.15009286,58424.0,58423.0,0.26507997]
[1723689555280,0.15009286,58424.0,58423.0,0.213898]
[1723689555488,0.15009286,58424.0,58423.0,0.28215925]
[1723689555984,0.15009286,58424.0,58423.0,0.213898]
[1723689558583,0.15009286,58424.0,58423.0,0.28211664]
[1723689559188,0.15009286,58424.0,58423.0,0.213898]
[1723689559585,0.15009286,58424.0,58423.0,0.28211817]
[1723689560295,0.15009286,58424.0,58423.0,0.213898]
[1723689563296,0.15009286,58424.0,58423.0,0.787276]
[1723689563895,0.15009286,58424.0,58423.0,0.727378]
[1723689565092,0.15009286,58424.0,58423.0,0.87274647]
[1723689565292,0.00025662,58429.0,58424.0,0.059896]
[1723689565500,0.15025662,58429.0,58428.0,0.12810314]
[1723689565695,0.15025662,58429.0,58428.0,0.27810314]
[1723689566183,0.15025662,58429.0,58428.0,0.209892]
[1723689568085,0.15525662,58429.0,58428.0,0.209892]
[1723689568599,0.15825662,58429.0,58428.0,0.209892]
[1723689570300,0.15825662,58429.0,58428.0,0.22273889]
[1723689575198,0.15825662,58429.0,58428.0,0.209892]
[1723689578191,0.15825662,58429.0,58428.0,0.29516544]
[1723689578500,0.15825662,58429.0,58428.0,0.4220165]
[1723689578993,0.15825662,58429.0,58428.0,0.33674306]
[1723689579201,0.12128464,58429.0,58428.0,0.91890342]
[1723689579399,0.09389733,58429.0,58428.0,0.85901873]
[1723689579595,0.01858289,58429.0,58428.0,0.27685106]
[1723689579799,0.1349586,58429.0,58428.0,0.85901405]
[1723689580097,0.1349586,58429.0,58428.0,0.58382597]
[1723689580300,0.1349586,58429.0,58428.0,0.50987798]
[1723689580604,0.1349586,58429.0,58428.0,0.59528807]
[1723689581488,0.1349586,58429.0,58428.0,0.72222905]
[1723689581694,0.1349586,58429.0,58428.0,0.4888161]
[1723689582603,0.1349586,58429.0,58428.0,0.40340601]
[1723689583398,0.1349586,58429.0,58428.0,0.27646503]
[1723689583898,0.1349586,58429.0,58428.0,0.07678804]
[1723689584706,0.11571488,58429.0,58428.0,0.16223218]
[1723689584996,0.07676646,58429.0,58428.0,0.07678804]
[1723689585198,0.11565094,58429.0,58428.0,0.28983967]
[1723689585401,0.11565094,58429.0,58428.0,0.35305163]
[1723689585595,0.11565094,58429.0,58428.0,0.29389144]
[1723689586197,0.11565094,58429.0,58428.0,0.35378344]
[1723689586397,0.11565094,58429.0,58428.0,0.2683393]
[1723689587291,0.11565094,58429.0,58428.0,0.44581613]
[1723689588306,0.07676646,58429.0,58428.0,0.44581602]
[1723689588491,0.07676646,58429.0,58428.0,0.2683393]
[1723689588701,1e-08,58429.0,58428.0,0.86650508]
[1723689588900,1e-08,58429.0,58428.0,0.99720008]
[1723689589099,1e-08,58429.0,58428.0,1.26337927]
[1723689589615,0.00025662,58434.0,58428.0,1.19449594]
[1723689589903,0.17025662,58434.0,58433.0,0.059887]
[1723689590107,0.17025662,58434.0,58433.0,0.38736078]
[1723689590905,0.17325662,58434.0,58433.0,0.38736078]
[1723689591494,0.17025662,58434.0,58433.0,0.38736078]
[1723689591699,0.18425662,58434.0,58433.0,0.38836078]
[1723689591906,0.18425662,58434.0,58433.0,0.38833858]
[1723689592305,0.18925662,58434.0,58433.0,0.38933858]
[1723689593310,0.18925662,58434.0,58433.0,0.75013858]
[1723689593607,0.08541904,58434.0,58433.0,1.01630589]
[1723689593801,4e-08,58434.0,58433.0,1.39293689]
[1723689594406,4e-08,58434.0,58433.0,1.39193689]
[1723689594608,4e-08,58434.0,58433.0,2.31033689]
[1723689594795,0.00025662,58439.0,58438.0,0.356464]
[1723689595000,0.00025662,58439.0,58438.0,1.32963331]
[1723689595199,0.00025662,58439.0,58438.0,2.62700906]
[1723689595604,0.00025662,58439.0,58438.0,2.49811909]
[1723689596009,0.00125662,58439.0,58438.0,2.50411909]
[1723689596207,6.2e-07,58439.0,58438.0,2.69249434]
[1723689596401,6.2e-07,58439.0,58438.0,2.93213434]
[1723689596800,6.2e-07,58439.0,58438.0,2.94213434]
[1723689597007,6.2e-07,58439.0,58438.0,2.95406058]
[1723689597713,6.2e-07,58439.0,58438.0,2.82600976]
[1723689598602,6.2e-07,58439.0,58438.0,2.92828106]
[1723689598809,6.2e-07,58439.0,58438.0,2.82600976]
[1723689599011,6.2e-07,58439.0,58438.0,2.92828035]
[1723689599320,6.2e-07,58439.0,58438.0,2.64855818]
[1723689599509,6.2e-07,58439.0,58438.0,2.92814432]
[1723689600508,6.2e-07,58439.0,58438.0,2.52814432]
[1723689600712,6.2e-07,58439.0,58438.0,2.94763274]
[1723689600912,6.2e-07,58439.0,58438.0,2.48775074]
[1723689601114,6.2e-07,58439.0,58438.0,1.97439074]
[1723689601310,6.2e-07,58439.0,58438.0,1.70828518]
[1723689601512,0.15000062,58439.0,58438.0,0.7740857]
[1723689601814,0.15000062,58439.0,58438.0,0.77410295]
[1723689604210,1.08404162,58439.0,58438.0,0.35342095]
[1723689604419,1.49657401,58439.0,58438.0,0.31667478]
[1723689604717,0.059886,58434.0,58433.0,0.00025662]
[1723689605011,0.059886,58434.0,58433.0,0.32773146]
[1723689605012,0.590686,58434.0,58433.0,0.32773146]
[1723689605220,1.504086,58434.0,58433.0,0.15025662]
[1723689605417,1.104086,58434.0,58433.0,0.32773302]
[1723689605611,0.590686,58434.0,58433.0,0.32773302]
[1723689606118,0.591686,58434.0,58433.0,0.34173302]
[1723689607308,0.592686,58434.0,58433.0,0.35373302]
[1723689607816,0.172,58434.0,58433.0,0.41362102]
[1723689608013,0.172,58434.0,58433.0,0.46473368]
[1723689608211,0.172,58434.0,58433.0,0.41362102]
[1723689608412,0.172,58434.0,58433.0,0.48176547]
[1723689608810,0.172,58434.0,58433.0,0.41362102]
[1723689609011,0.172,58434.0,58433.0,0.84255066]
[1723689609325,0.231886,58434.0,58433.0,0.71450852]
[1723689609509,0.231886,58434.0,58433.0,0.76563065]
[1723689609705,0.231886,58434.0,58433.0,0.71450852]
[1723689610617,0.231886,58434.0,58433.0,0.76563065]
[1723689610917,0.231886,58434.0,58433.0,0.82551765]
[1723689611110,0.231886,58434.0,58433.0,0.77439552]
[1723689611509,1.565972,58434.0,58433.0,0.35370852]
[1723689612213,1.106086,58434.0,58433.0,0.35370852]
[1723689612420,0.231886,58434.0,58433.0,0.35370852]
[1723689612615,0.231886,58434.0,58433.0,0.35373267]
[1723689612811,0.231886,58434.0,58433.0,0.34773267]
[1723689613211,0.763186,58434.0,58433.0,0.33773267]
[1723689614019,0.763186,58434.0,58433.0,0.39762067]
[1723689616613,0.494286,58434.0,58433.0,0.39762067]